fUST/lending_fUST_20240110
["ID","MTS","AMOUNT","RATE_DAILY","PERIOD"]
[311068450,1704892242017,-1025.31,0.00027397,2]
[311068451,1704892242027,-500.0,0.00027397,2]
[311068452,1704892242036,-503.66651068,0.00027397,2]
[311068453,1704892242045,-500.0,0.00027397,2]
[311068454,1704892242055,-493.76665639,0.00027397,2]
[311068455,1704892242066,-501.78053641,0.00027397,2]
[311068456,1704892242075,-500.0,0.00027397,2]
[311068457,1704892242084,-500.0,0.00027397,2]
[311068458,1704892242093,-514.68645704,0.00027397,2]
[311068459,1704892242103,-2874.74,0.00027397,2]
[311068460,1704892242112,-502.65996338,0.00027397,2]
[311068461,1704892242122,-500.0,0.00027397,2]
[311068462,1704892242131,-356.23431548,0.00027397,2]
[311068463,1704892242141,-500.0,0.00027397,2]
[311068464,1704892242151,-501.18202632,0.00027397,2]
[311068465,1704892242160,-500.0,0.00027397,2]
[311068466,1704892242169,-504.9094626,0.00027397,2]
[311068467,1704892242179,-500.0,0.00027397,2]
[311068468,1704892242188,-500.0,0.00027397,2]
[311068469,1704892242197,-6774.09,0.00027397,2]
[311068470,1704892242206,-603.66307077,0.00027397,2]
[311068471,1704892242215,-500.0,0.00027397,2]
[311068472,1704892242225,-500.0,0.00027397,2]
[311068473,1704892242234,-189.40971969,0.00027397,2]
[311068475,1704892242244,-515.0953029,0.00027397,2]
[311068476,1704892242253,-5058.65,0.00027397,2]
[311068478,1704892242262,-500.0,0.00027397,2]
[311068480,1704892242272,-200.0,0.00027397,2]
[311068482,1704892242281,-500.0,0.00027397,2]
[311068484,1704892242291,-2995.66,0.00027397,2]
[311068486,1704892242300,-500.0,0.00027397,2]
[311068488,1704892242309,-500.0,0.00027397,2]
[311068490,1704892242319,-500.0,0.00027397,2]
[311068493,1704892242330,-579.01,0.00027397,2]
[311068495,1704892242339,-6529.67,0.00027397,2]
[311068496,1704892242348,-500.0,0.00027397,2]
[311068498,1704892242357,-500.0,0.00027397,2]
[311068501,1704892242367,-4768.34,0.00027397,2]
[311068504,1704892242376,-282.16174102,0.00027397,2]
[311068507,1704892242386,-500.0,0.00027397,2]
[311068509,1704892242395,-1236.97,0.00027397,2]
[311068511,1704892242404,-500.0,0.00027397,2]
[311068513,1704892242413,-500.0,0.00027397,2]
[311068514,1704892242422,-504.43357066,0.00027397,2]
[311068515,1704892242431,-155.0,0.00027397,2]
[311068516,1704892242441,-39207.4,0.00027397,2]
[311068517,1704892242450,-500.0,0.00027397,2]
[311068518,1704892242460,-500.0,0.00027397,2]
[311068519,1704892242470,-500.0,0.00027397,2]
[311068520,1704892242478,-500.0,0.00027397,2]
[311068522,1704892242488,-500.0,0.00027397,2]
[311068525,1704892242497,-1650.6,0.00027397,2]
[311068526,1704892242507,-500.0,0.00027397,2]
[311068527,1704892242517,-762.79300443,0.00027397,2]
[311068528,1704892242527,-500.0,0.00027397,2]
[311068529,1704892242537,-500.0,0.00027397,2]
[311068530,1704892242546,-500.0,0.00027397,2]
[311068531,1704892242556,-500.0,0.00027397,2]
[311068532,1704892242565,-500.0,0.00027397,2]
[311068533,1704892242577,-500.0,0.00027397,2]
[311068534,1704892242587,-500.0,0.00027397,2]
[311068535,1704892242596,-1323.82,0.00027397,2]
[311068536,1704892242605,-500.0,0.00027397,2]
[311068537,1704892242614,-500.0,0.00027397,2]
[311068538,1704892242624,-505.0037566,0.00027397,2]
[311068539,1704892242638,-500.0,0.00027397,2]
[311068540,1704892242647,-301.84281423,0.00027397,2]
[311068541,1704892242658,-500.0,0.00027397,2]
[311068542,1704892242667,-602.33008702,0.00027397,2]
[311068543,1704892242676,-500.0,0.00027397,2]
[311068544,1704892242686,-500.0,0.00027397,2]
[311068545,1704892242696,-500.0,0.00027397,2]
[311068546,1704892242705,-14360.01,0.00027397,2]
[311068547,1704892242715,-500.0,0.00027397,2]
[311068548,1704892242724,-500.0,0.00027397,2]
[311068549,1704892242734,-504.30430713,0.00027397,2]
[311068550,1704892242744,-732.09,0.00027397,2]
[311068551,1704892242755,-505.71191122,0.00027397,2]
[311068552,1704892242765,-639.25358245,0.00027397,2]
[311068553,1704892242776,-1391.12,0.00027397,2]
[311068554,1704892242788,-500.0,0.00027397,2]
[311068555,1704892242798,-2251.08,0.00027397,2]
[311068556,1704892242807,-500.0,0.00027397,2]
[311068557,1704892242817,-3557.11,0.00027397,2]
[311068558,1704892242829,-500.0,0.00027397,2]
[311068559,1704892242838,-741.46,0.00027397,2]
[311068560,1704892242848,-1712.79,0.00027397,2]
[311068561,1704892242859,-500.0,0.00027397,2]
[311068562,1704892242871,-2168.04,0.00027397,2]
[311068563,1704892242880,-730.53,0.00027397,2]
[311068564,1704892242889,-500.0,0.00027397,2]
[311068565,1704892242898,-1044.81,0.00027397,2]
[311068566,1704892242907,-500.0,0.00027397,2]
[311068567,1704892242916,-500.0,0.00027397,2]
[311068568,1704892242925,-725.2,0.00027397,2]
[311068569,1704892242934,-500.0,0.00027397,2]
[311068570,1704892242943,-500.0,0.00027397,2]
[311068571,1704892242952,-500.0,0.00027397,2]
[311068572,1704892242961,-500.0,0.00027397,2]
[311068573,1704892242970,-215.0521032,0.00027397,2]
[311068574,1704892242979,-511.97610485,0.00027397,2]
[311068575,1704892242988,-500.0,0.00027397,2]
[311068576,1704892242998,-500.62912109,0.00027397,2]
[311068577,1704892243007,-500.0,0.00027397,2]
[311068578,1704892243016,-500.62188728,0.00027397,2]
[311068579,1704892243026,-634.62797387,0.00027397,2]
[311068580,1704892243035,-500.0,0.00027397,2]
[311068581,1704892243044,-500.0,0.00027397,2]
[311068583,1704892243053,-570.75622385,0.00027397,2]
[311068584,1704892243062,-500.0,0.00027397,2]
[311068585,1704892243071,-500.0,0.00027397,2]
[311068586,1704892243082,-500.0,0.00027397,2]
[311068587,1704892243091,-500.0,0.00027397,2]
[311068588,1704892243100,-500.0,0.00027397,2]
[311068589,1704892243109,-500.0,0.00027397,2]
[311068590,1704892243118,-500.0,0.00027397,2]
[311068591,1704892243127,-501.02043593,0.00027397,2]
[311068592,1704892243136,-500.0,0.00027397,2]
[311068593,1704892243145,-500.0,0.00027397,2]
[311068594,1704892243154,-500.0,0.00027397,2]
[311068595,1704892243163,-2877.68,0.00027397,2]
[311068596,1704892243172,-1000.0,0.00027397,4]
[311068597,1704892243181,-500.0,0.00027397,2]
[311068598,1704892243190,-500.0,0.00027397,2]
[311068599,1704892243199,-1262.23,0.00027397,2]
[311068600,1704892243209,-207.70129243,0.00027397,2]
[311068601,1704892243218,-500.0,0.00027397,2]
[311068602,1704892243227,-503.95177323,0.00027397,2]
[311068603,1704892243236,-500.0,0.00027397,2]
[311068604,1704892243245,-1270.36,0.00027397,2]
[311068605,1704892243254,-1561.52,0.00027397,2]
[311068606,1704892243264,-500.0,0.00027397,2]
[311068607,1704892243273,-500.0,0.00027397,2]
[311068608,1704892243282,-500.0,0.00027397,2]
[311068609,1704892243292,-173.39951728,0.00027432,2]
[311068610,1704892243301,-500.0,0.0002747,4]
[311068611,1704892243310,-500.0,0.0002747,4]
[311068612,1704892243319,-327.27121741,0.0002747,4]
[311068613,1704892243331,-193.37474437,0.0002747,4]
[311068615,1704892243343,-500.0,0.0002747,4]
[311068617,1704892243353,-500.0,0.0002747,4]
[311068618,1704892243362,-260.10869007,0.0002747,4]
[311068619,1704892243371,-550.32549553,0.0002747,4]
[311068620,1704892243380,-508.75646092,0.0002747,4]
[311068621,1704892243389,-500.0,0.0002747,4]
[311068622,1704892243398,-500.0,0.0002747,4]
[311068623,1704892243407,-500.0,0.0002747,4]
[311068624,1704892243417,-500.0,0.0002747,4]
[311068625,1704892243426,-500.0,0.0002747,4]
[311068626,1704892243435,-500.0,0.0002747,4]
[311068627,1704892243444,-61705.79094123,0.00027471,2]
[311068628,1704892243453,-800.0403612,0.000275,2]
[311068629,1704892243463,-500.0,0.00027534,2]
[311068630,1704892243472,-784.33,0.0002757,2]
[311068636,1704892243586,-32113.65059237,0.0002757,2]
[311068638,1704892243596,-2000.0,0.000276,2]
[311068639,1704892243606,-2000.0,0.0002761,2]
[311068640,1704892243615,-2000.0,0.0002762,2]
[311068641,1704892243624,-2000.0,0.0002763,2]
[311068642,1704892243634,-2000.0,0.0002764,2]
[311068643,1704892243643,-2000.0,0.0002765,2]
[311068644,1704892243653,-2000.0,0.0002766,2]
[311068646,1704892243663,-2000.0,0.0002767,2]
[311068647,1704892243672,-784.33,0.0002767,2]
[311068649,1704892243681,-784.33,0.0002767,2]
[311068650,1704892243690,-784.33,0.0002767,2]
[311068652,1704892243700,-784.33,0.0002767,2]
[311068653,1704892243709,-784.33,0.0002767,2]
[311068655,1704892243718,-784.54729767,0.0002767,2]
[311068657,1704892243728,-500.0,0.00027671,2]
[311068659,1704892243737,-500.0,0.00027671,2]
[311068660,1704892243746,-356.33341781,0.00027671,2]
[311068662,1704892243755,-343.54922404,0.00027671,2]
[311068664,1704892243764,-500.0,0.00027671,2]
[311068666,1704892243777,-500.0,0.00027671,2]
[311068668,1704892243787,-590.06109959,0.00027671,2]
[311068670,1704892243796,-500.0,0.00027671,2]
[311068672,1704892243805,-500.0,0.00027671,2]
[311068675,1704892243816,-500.0,0.00027671,2]
[311068677,1704892243826,-500.0,0.00027671,2]
[311068680,1704892243835,-500.0,0.00027671,2]
[311068683,1704892243844,-500.0,0.00027671,2]
[311068686,1704892243854,-1345.97,0.00027671,2]
[311068688,1704892243864,-500.0,0.00027671,2]
[311068691,1704892243873,-500.0,0.00027671,2]
[311068692,1704892243882,-500.0,0.00027671,2]
[311068694,1704892243891,-1680.34,0.00027671,2]
[311068696,1704892243900,-500.0,0.00027671,2]
[311068698,1704892243909,-500.0,0.00027671,2]
[311068700,1704892243919,-500.0,0.00027671,2]
[311068701,1704892243929,-500.0,0.00027671,2]
[311068703,1704892243938,-500.0,0.00027671,2]
[311068705,1704892243947,-500.0,0.00027671,2]
[311068706,1704892243957,-500.0,0.00027671,2]
[311068707,1704892243966,-500.0,0.00027671,2]
[311068709,1704892243975,-500.0,0.00027671,2]
[311068710,1704892243984,-500.0,0.00027671,2]
[311068712,1704892243994,-327.46387697,0.00027671,2]
[311068714,1704892244004,-637.17,0.00027671,2]
[311068716,1704892244013,-500.0,0.00027671,2]
[311068717,1704892244022,-540.54,0.00027671,2]
[311068719,1704892244031,-226.49621579,0.00027671,2]
[311068721,1704892244040,-1068.48,0.00027671,2]
[311068723,1704892244049,-500.0,0.00027671,2]
[311068725,1704892244058,-500.0,0.00027671,2]
[311068726,1704892244067,-500.0,0.00027671,2]
[311068728,1704892244078,-500.0,0.00027671,2]
[311068730,1704892244087,-500.0,0.00027671,2]
[311068732,1704892244098,-853.02,0.00027671,2]
[311068733,1704892244107,-254.56710014,0.00027671,2]
[311068735,1704892244116,-1000.0,0.00027671,2]
[311068736,1704892244125,-496.21810783,0.00027671,2]
[311068737,1704892244134,-500.0,0.00027671,2]
[311068739,1704892244144,-510.60463476,0.00027671,2]
[311068741,1704892244153,-500.0,0.00027671,2]
[311068742,1704892244163,-517.23126257,0.00027671,2]
[311068744,1704892244172,-500.0,0.00027671,2]
[311068745,1704892244181,-500.0,0.00027671,2]
[311068747,1704892244190,-346.47463783,0.00027671,2]
[311068749,1704892244199,-500.0,0.00027671,2]
[311068750,1704892244208,-500.0,0.00027671,2]
[311068751,1704892244217,-500.0,0.00027671,2]
[311068753,1704892244227,-500.0,0.00027671,2]
[311068754,1704892244237,-343.75474281,0.00027671,2]
[311068755,1704892244247,-500.0,0.00027671,2]
[311068756,1704892244256,-564.65,0.00027671,2]
[311068757,1704892244266,-502.84193222,0.00027671,2]
[311068758,1704892244276,-500.0,0.00027671,2]
[311068759,1704892244285,-500.0,0.00027671,2]
[311068760,1704892244294,-500.0,0.00027671,2]
[311068761,1704892244304,-500.0,0.00027671,2]
[311068762,1704892244313,-500.0,0.00027671,2]
[311068763,1704892244322,-500.0,0.00027671,2]
[311068764,1704892244333,-937.49,0.00027671,2]
[311068765,1704892244342,-500.0,0.00027671,2]
[311068766,1704892244352,-501.38033797,0.00027671,2]
[311068767,1704892244361,-500.0,0.00027671,2]
[311068768,1704892244371,-500.0,0.00027671,2]
[311068769,1704892244381,-511.74782297,0.00027671,2]
[311068770,1704892244390,-500.0,0.00027671,2]
[311068771,1704892244399,-500.0,0.00027671,5]
[311068772,1704892244408,-500.0,0.00027671,2]
[311068773,1704892244418,-500.0,0.00027671,2]
[311068774,1704892244427,-500.0,0.00027671,2]
[311068775,1704892244437,-500.0,0.00027671,2]
[311068776,1704892244446,-1063.94,0.00027671,2]
[311068777,1704892244456,-500.0,0.00027671,2]
[311068778,1704892244467,-500.0,0.00027671,2]
[311068779,1704892244477,-500.0,0.00027671,2]
[311068780,1704892244486,-501.60366891,0.00027671,2]
[311068781,1704892244495,-302.133268,0.00027671,2]
[311068782,1704892244504,-302.48071035,0.00027671,2]
[311068783,1704892244513,-509.85890304,0.00027671,2]
[311068784,1704892244523,-500.0,0.00027671,2]
[311068785,1704892244532,-505.78714595,0.00027671,2]
[311068786,1704892244542,-780.66,0.00027671,2]
[311068787,1704892244551,-1134.8,0.00027671,2]
[311068788,1704892244560,-500.0,0.00027671,2]
[311068789,1704892244570,-500.0,0.00027671,2]
[311068790,1704892244582,-500.0,0.00027671,2]
[311068791,1704892244591,-500.0,0.00027671,2]
[311068792,1704892244600,-500.0,0.00027671,2]
[311068793,1704892244609,-500.0,0.00027671,2]
[311068794,1704892244618,-500.0,0.00027671,2]
[311068795,1704892244627,-1025.31,0.00027671,2]
[311068796,1704892244636,-500.0,0.00027671,2]
[311068797,1704892244645,-2874.74,0.00027671,2]
[311068798,1704892244654,-500.0,0.00027671,2]
[311068799,1704892244663,-500.0,0.00027671,2]
[311068800,1704892244672,-500.0,0.00027671,2]
[311068801,1704892244681,-6774.09,0.00027671,2]
[311068802,1704892244690,-500.0,0.00027671,2]
[311068803,1704892244701,-500.0,0.00027671,2]
[311068804,1704892244709,-500.0,0.00027671,2]
[311068805,1704892244718,-5058.65,0.00027671,2]
[311068806,1704892244727,-500.0,0.00027671,2]
[311068807,1704892244736,-212.49673005,0.00027671,2]
[311068808,1704892244745,-500.0,0.00027671,2]
[311068809,1704892244755,-2995.66,0.00027671,2]
[311068810,1704892244765,-500.0,0.00027671,2]
[311068811,1704892244774,-500.0,0.00027671,2]
[311068812,1704892244783,-500.0,0.00027671,2]
[311068813,1704892244792,-579.01,0.00027671,2]
[311068814,1704892244802,-6529.67,0.00027671,2]
[311068815,1704892244811,-500.0,0.00027671,2]
[311068816,1704892244820,-500.0,0.00027671,2]
[311068817,1704892244831,-4768.34,0.00027671,2]
[311068818,1704892244841,-500.0,0.00027671,2]
[311068819,1704892244851,-1236.97,0.00027671,2]
[311068820,1704892244860,-545.35604248,0.00027671,2]
[311068821,1704892244870,-500.0,0.00027671,2]
[311068822,1704892244879,-39207.4,0.00027671,2]
[311068823,1704892244889,-500.0,0.00027671,2]
[311068824,1704892244898,-506.49930172,0.00027671,2]
[311068825,1704892244907,-500.0,0.00027671,2]
[311068826,1704892244916,-500.0,0.00027671,2]
[311068827,1704892244925,-500.0,0.00027671,2]
[311068828,1704892244934,-1650.6,0.00027671,2]
[311068829,1704892244944,-500.0,0.00027671,2]
[311068830,1704892244954,-265.0895561,0.00027671,2]
[311068831,1704892244963,-500.0,0.00027671,2]
[311068832,1704892244973,-500.0,0.00027671,2]
[311068833,1704892244981,-513.26199714,0.00027671,2]
[311068834,1704892244990,-500.0,0.00027671,2]
[311068836,1704892244999,-521.58943388,0.00027671,2]
[311068837,1704892245008,-500.0,0.00027671,2]
[311068838,1704892245017,-1323.82,0.00027671,2]
[311068839,1704892245027,-489.54080109,0.00027671,2]
[311068840,1704892245035,-500.0,0.00027671,2]
[311068841,1704892245044,-511.12548671,0.00027671,2]
[311068842,1704892245054,-500.0,0.00027671,2]
[311068843,1704892245063,-500.0,0.00027671,2]
[311068844,1704892245072,-585.29602357,0.00027671,2]
[311068845,1704892245085,-500.0,0.00027671,2]
[311068846,1704892245094,-14360.01,0.00027671,2]
[311068847,1704892245103,-500.0,0.00027671,2]
[311068848,1704892245112,-500.0,0.00027671,2]
[311068849,1704892245121,-732.09,0.00027671,2]
[311068850,1704892245130,-1391.12,0.00027671,2]
[311068851,1704892245139,-254.15774864,0.00027671,2]
[311068852,1704892245148,-2251.08,0.00027671,2]
[311068853,1704892245157,-500.0,0.00027671,2]
[311068854,1704892245166,-3557.11,0.00027671,2]
[311068855,1704892245176,-500.0,0.00027671,2]
[311068856,1704892245185,-741.46,0.00027671,2]
[311068857,1704892245194,-1712.79,0.00027671,2]
[311068858,1704892245204,-500.0,0.00027671,2]
[311068859,1704892245213,-2168.04,0.00027671,2]
[311068860,1704892245222,-730.53,0.00027671,2]
[311068861,1704892245232,-500.0,0.00027671,2]
[311068865,1704892245240,-1044.81,0.00027671,2]
[311068868,1704892245249,-500.0,0.00027671,2]
[311068870,1704892245259,-500.0,0.00027671,2]
[311068871,1704892245268,-725.2,0.00027671,2]
[311068872,1704892245279,-500.0,0.00027671,2]
[311068874,1704892245291,-500.0,0.00027671,2]
[311068876,1704892245301,-500.0,0.00027671,2]
[311068878,1704892245311,-500.0,0.00027671,2]
[311068879,1704892245320,-500.0,0.00027671,2]
[311068880,1704892245331,-500.0,0.00027671,2]
[311068881,1704892245340,-500.0,0.00027671,2]
[311068882,1704892245350,-500.0,0.00027671,2]
[311068884,1704892245360,-503.78777327,0.00027671,2]
[311068885,1704892245370,-500.0,0.00027671,2]
[311068886,1704892245379,-500.0,0.00027671,2]
[311068887,1704892245388,-500.0,0.00027671,2]
[311068888,1704892245398,-500.0,0.00027671,2]
[311068889,1704892245407,-500.0,0.00027671,2]
[311068890,1704892245416,-500.0,0.00027671,2]
[311068891,1704892245425,-502.26561003,0.00027671,2]
[311068892,1704892245434,-500.0,0.00027671,2]
[311068893,1704892245443,-500.0,0.00027671,2]
[311068895,1704892245453,-2877.68,0.00027671,2]
[311068897,1704892245463,-1000.0,0.00027671,4]
[311068898,1704892245472,-500.0,0.00027671,2]
[311068899,1704892245482,-500.0,0.00027671,2]
[311068900,1704892245491,-1262.23,0.00027671,2]
[311068901,1704892245500,-500.0,0.00027671,2]
[311068902,1704892245510,-503.46709942,0.00027671,2]
[311068903,1704892245519,-1270.36,0.00027671,2]
[311068904,1704892245528,-1561.52,0.00027671,2]
[311068906,1704892245537,-501.69216036,0.00027671,2]
[311068908,1704892245546,-500.0,0.00027671,2]
[311068910,1704892245556,-500.0,0.00027671,2]
[311068912,1704892245565,-2000.0,0.0002768,2]
[311068913,1704892245574,-2000.0,0.0002769,2]
[311068914,1704892245587,-687.59711705,0.000277,2]
[311068915,1704892245596,-2000.0,0.000277,2]
[311068916,1704892245606,-2000.0,0.0002771,2]
[311068917,1704892245615,-620.17252848,0.0002772,2]
[311068918,1704892245624,-2000.0,0.0002772,2]
[311068919,1704892245634,-2000.0,0.0002773,2]
[311068920,1704892245644,-2000.0,0.0002774,2]
[311068921,1704892245654,-2000.0,0.0002775,2]
[311068922,1704892245663,-2757.967911,0.0002776,2]
[311068923,1704892245672,-500.0,0.00027808,2]
[311068925,1704892245682,-173.39951728,0.00027845,2]
[311068926,1704892245691,-500.0,0.00027945,2]
[311068927,1704892245700,-500.0,0.00027945,2]
[311068928,1704892245710,-500.0,0.00027945,2]
[311068929,1704892245719,-500.0,0.00027945,2]
[311068930,1704892245728,-500.0,0.00027945,2]
[311068931,1704892245738,-647.68493227,0.00027945,2]
[311068932,1704892245747,-500.0,0.00027945,2]
[311068933,1704892245756,-1345.97,0.00027945,2]
[311068934,1704892245766,-500.0,0.00027945,2]
[311068935,1704892245780,-500.0,0.00027945,2]
[311068936,1704892245789,-500.0,0.00027945,2]
[311068937,1704892245798,-1680.34,0.00027945,2]
[311068938,1704892245807,-500.0,0.00027945,2]
[311068939,1704892245816,-500.0,0.00027945,2]
[311068940,1704892245828,-416.32539612,0.00027945,2]
[311068941,1704892245837,-500.0,0.00027945,2]
[311068942,1704892245846,-500.0,0.00027945,2]
[311068943,1704892245856,-500.27922658,0.00027945,2]
[311068944,1704892245865,-500.0,0.00027945,2]
[311068945,1704892245874,-500.0,0.00027945,2]
[311068946,1704892245883,-500.0,0.00027945,2]
[311068947,1704892245892,-637.17,0.00027945,2]
[311068948,1704892245900,-500.0,0.00027945,2]
[311068949,1704892245920,-540.54,0.00027945,2]
[311068950,1704892245930,-1068.48,0.00027945,2]
[311068951,1704892245939,-500.0,0.00027945,2]
[311068952,1704892245949,-500.0,0.00027945,2]
[311068953,1704892245959,-500.0,0.00027945,2]
[311068954,1704892245969,-500.0,0.00027945,2]
[311068955,1704892245979,-500.0,0.00027945,2]
[311068956,1704892245988,-853.02,0.00027945,2]
[311068957,1704892245997,-1000.0,0.00027945,2]
[311068958,1704892246006,-500.0,0.00027945,2]
[311068959,1704892246015,-500.0,0.00027945,2]
[311068960,1704892246025,-500.0,0.00027945,2]
[311068961,1704892246034,-500.0,0.00027945,2]
[311068963,1704892246043,-500.0,0.00027945,2]
[311068965,1704892246052,-500.0,0.00027945,2]
[311068967,1704892246061,-500.0,0.00027945,2]
[311068969,1704892246070,-500.0,0.00027945,2]
[311068971,1704892246082,-500.0,0.00027945,2]
[311068982,1704892246232,-564.65,0.00027945,2]
[311068983,1704892246241,-500.0,0.00027945,2]
[311068984,1704892246250,-500.0,0.00027945,2]
[311068986,1704892246259,-500.0,0.00027945,2]
[311068988,1704892246269,-500.0,0.00027945,2]
[311068990,1704892246278,-500.0,0.00027945,2]
[311068991,1704892246287,-500.0,0.00027945,2]
[311068992,1704892246296,-937.49,0.00027945,2]
[311068994,1704892246305,-398.56874292,0.00027945,2]
[311068996,1704892246314,-500.0,0.00027945,2]
[311068997,1704892246323,-500.0,0.00027945,2]
[311068999,1704892246333,-500.0,0.00027945,2]
[311069001,1704892246343,-500.0,0.00027945,5]
[311069003,1704892246352,-500.0,0.00027945,2]
[311069005,1704892246361,-500.0,0.00027945,2]
[311069006,1704892246371,-500.0,0.00027945,2]
[311069008,1704892246380,-1063.94,0.00027945,2]
[311069010,1704892246390,-489.67848275,0.00027945,2]
[311069012,1704892246399,-628.12312548,0.00027945,2]
[311069013,1704892246408,-500.0,0.00027945,2]
[311069014,1704892246417,-780.66,0.00027945,2]
[311069015,1704892246427,-1134.8,0.00027945,2]
[311069016,1704892246437,-500.0,0.00027945,2]
[311069017,1704892246446,-500.0,0.00027945,2]
[311069018,1704892246455,-500.0,0.00027945,2]
[311069019,1704892246465,-500.0,0.00027945,2]
[311069020,1704892246475,-500.0,0.00027945,2]
[311069021,1704892246485,-500.0,0.00027945,2]
[311069022,1704892246494,-500.0,0.00027945,2]
[311069023,1704892246504,-1025.31,0.00027945,2]
[311069024,1704892246514,-500.0,0.00027945,2]
[311069025,1704892246523,-2874.74,0.00027945,2]
[311069026,1704892246533,-500.0,0.00027945,2]
[311069027,1704892246543,-500.0,0.00027945,2]
[311069028,1704892246553,-500.0,0.00027945,2]
[311069029,1704892246562,-6774.09,0.00027945,2]
[311069030,1704892246572,-500.0,0.00027945,2]
[311069031,1704892246584,-500.0,0.00027945,2]
[311069032,1704892246593,-500.0,0.00027945,2]
[311069033,1704892246603,-5058.65,0.00027945,2]
[311069034,1704892246613,-500.0,0.00027945,2]
[311069035,1704892246622,-500.0,0.00027945,2]
[311069036,1704892246631,-2995.66,0.00027945,2]
[311069037,1704892246641,-500.0,0.00027945,2]
[311069038,1704892246651,-500.0,0.00027945,2]
[311069039,1704892246660,-500.0,0.00027945,2]
[311069040,1704892246669,-579.01,0.00027945,2]
[311069041,1704892246679,-6529.67,0.00027945,2]
[311069042,1704892246690,-500.0,0.00027945,2]
[311069043,1704892246700,-4768.34,0.00027945,2]
[311069044,1704892246709,-500.0,0.00027945,2]
[311069045,1704892246718,-1236.97,0.00027945,2]
[311069046,1704892246727,-500.0,0.00027945,2]
[311069047,1704892246738,-39207.4,0.00027945,2]
[311069048,1704892246747,-500.0,0.00027945,2]
[311069049,1704892246757,-500.0,0.00027945,2]
[311069050,1704892246767,-500.0,0.00027945,2]
[311069051,1704892246777,-576.93418638,0.00027945,2]
[311069052,1704892246787,-1650.6,0.00027945,2]
[311069053,1704892246796,-500.0,0.00027945,2]
[311069054,1704892246806,-500.0,0.00027945,2]
[311069055,1704892246816,-500.0,0.00027945,2]
[311069056,1704892246825,-245.30792768,0.00027945,2]
[311069057,1704892246839,-1323.82,0.00027945,2]
[311069058,1704892246848,-500.0,0.00027945,2]
[311069059,1704892246858,-500.0,0.00027945,2]
[311069060,1704892246869,-500.0,0.00027945,2]
[311069062,1704892246878,-500.0,0.00027945,2]
[311069063,1704892246887,-14360.01,0.00027945,2]
[311069064,1704892246896,-500.0,0.00027945,2]
[311069066,1704892246905,-500.0,0.00027945,2]
[311069067,1704892246914,-732.09,0.00027945,2]
[311069068,1704892246923,-1391.12,0.00027945,2]
[311069069,1704892246932,-2251.08,0.00027945,2]
[311069070,1704892246944,-500.0,0.00027945,2]
[311069071,1704892246953,-3557.11,0.00027945,2]
[311069072,1704892246963,-500.0,0.00027945,2]
[311069073,1704892246972,-741.46,0.00027945,2]
[311069074,1704892246981,-1712.79,0.00027945,2]
[311069075,1704892246993,-500.0,0.00027945,2]
[311069076,1704892247003,-2168.04,0.00027945,2]
[311069077,1704892247012,-730.53,0.00027945,2]